fUSD/lending_fUSD_20260429
["ID","MTS","AMOUNT","RATE_DAILY","PERIOD"]
[421311453,1777402263017,-373.0,0.00023562,7]
[421311454,1777402263026,-1050.0,0.00023671,2]
[421311455,1777402263035,-1050.0,0.00023671,2]
[421311456,1777402263044,-1050.0,0.00023671,2]
[421311457,1777402263053,-1050.0,0.00023671,2]
[421311458,1777402263062,-1050.0,0.00023671,2]
[421311459,1777402263072,-1050.0,0.00023671,2]
[421311460,1777402263081,-1050.0,0.00023671,2]
[421311461,1777402263090,-684.0,0.00023671,2]
[421311462,1777402263099,-10015.59694423,0.000238,2]
[421311463,1777402263108,-373.0,0.00023836,7]
[421311464,1777402263117,-926.86,0.00023868,2]
[421311465,1777402263126,-3600.0,0.00024,2]
[421311466,1777402263135,-2741.55100243,0.00024,2]
[421311467,1777402263144,-502.0,0.00024,2]
[421311468,1777402263154,-379.0,0.00024,2]
[421311469,1777402263163,-585.0,0.00024,2]
[421311470,1777402263172,-747.0,0.00024,2]
[421311471,1777402263181,-202.0,0.00024,2]
[421311472,1777402263191,-160.0,0.00024,7]
[421311473,1777402263200,-161.0,0.00024,2]
[421311474,1777402263209,-1032.0,0.00024,2]
[421311475,1777402263218,-445.0,0.00024,2]
[421311476,1777402263227,-373.0,0.0002411,7]
[421311477,1777402263236,-240.87,0.0002411,2]
[421311478,1777402263245,-373.0,0.00024164,7]
[421311479,1777402263254,-296.0,0.00024176,10]
[421311480,1777402263264,-474.0,0.00024176,10]
[421311481,1777402263273,-612.0,0.00024176,10]
[421311482,1777402263282,-3741.49013809,0.0002421,2]
[421311483,1777402263291,-2040.23192967,0.00024249,2]
[421311484,1777402263301,-10000.0,0.00024411,2]
[421311485,1777402263310,-1272.47,0.000245,7]
[421311486,1777402263319,-1832.0,0.0002463,2]
[421311487,1777402263330,-1832.0,0.0002463,2]
[421311488,1777402263339,-1879.5,0.0002463,2]
[421311489,1777402263348,-1879.5,0.0002463,2]
[421311490,1777402263357,-2350.0,0.0002463,2]
[421311491,1777402263367,-1646.5,0.0002463,2]
[421311492,1777402263375,-1646.5,0.0002463,2]
[421311493,1777402263384,-1387.70575113,0.0002463,2]
[421311494,1777402263394,-1387.70575113,0.0002463,2]
[421311495,1777402263403,-150.0,0.00024658,2]
[421311496,1777402263412,-150.0,0.00024658,2]
[421311497,1777402263421,-150.0,0.00024658,2]
[421311498,1777402263430,-150.0,0.00024658,2]
[421311499,1777402263439,-150.0,0.00024658,2]
[421311500,1777402263449,-150.0,0.00024658,2]
[421311501,1777402263458,-150.0,0.00024658,2]
[421311502,1777402263467,-150.0,0.00024658,2]
[421311503,1777402263476,-150.0,0.00024658,2]
[421311504,1777402263486,-150.0,0.00024658,2]
[421311505,1777402263495,-150.0,0.00024658,2]
[421311506,1777402263504,-150.0,0.00024658,2]
[421311507,1777402263513,-150.0,0.00024658,2]
[421311508,1777402263523,-150.0,0.00024658,2]
[421311509,1777402263531,-150.0,0.00024658,2]
[421311510,1777402263540,-150.0,0.00024658,2]
[421311511,1777402263550,-150.0,0.00024658,2]
[421311512,1777402263559,-150.0,0.00024658,2]
[421311513,1777402263569,-150.0,0.00024658,2]
[421311514,1777402263578,-150.0,0.00024658,2]
[421311515,1777402263588,-150.0,0.00024658,2]
[421311516,1777402263597,-150.0,0.00024658,2]
[421311517,1777402263606,-285.94748226,0.00024658,2]
[421311518,1777402263617,-150.0,0.00024658,2]
[421311519,1777402263626,-150.0,0.00024658,2]
[421311520,1777402263635,-150.0,0.00024658,2]
[421311521,1777402263645,-150.0,0.00024658,2]
[421311522,1777402263654,-150.06427926,0.00024658,2]
[421311523,1777402263663,-941.0,0.00024658,2]
[421311524,1777402263672,-941.0,0.00024658,2]
[421311525,1777402263682,-941.0,0.00024658,2]
[421311526,1777402263691,-941.0,0.00024658,2]
[421311527,1777402263700,-941.0,0.00024658,2]
[421311528,1777402263709,-941.0,0.00024658,2]
[421311529,1777402263719,-941.0,0.00024658,2]
[421311530,1777402263728,-941.0,0.00024658,2]
[421311531,1777402263737,-941.0,0.00024658,2]
[421311532,1777402263747,-941.0,0.00024658,2]
[421311533,1777402263757,-941.0,0.00024658,2]
[421311534,1777402263766,-941.0,0.00024658,2]
[421311535,1777402263776,-941.0,0.00024658,2]
[421311536,1777402263786,-941.0,0.00024658,2]
[421311537,1777402263795,-941.0,0.00024658,2]
[421311538,1777402263805,-941.0,0.00024658,2]
[421311539,1777402263814,-941.0,0.00024658,2]
[421311540,1777402263823,-941.0,0.00024658,2]
[421311541,1777402263832,-941.0,0.00024658,2]
[421311542,1777402263841,-941.0,0.00024658,2]
[421311543,1777402263850,-941.0,0.00024658,2]
[421311544,1777402263859,-941.0,0.00024658,2]
[421311545,1777402263868,-941.0,0.00024658,2]
[421311546,1777402263876,-797.39609462,0.00024658,2]
[421311547,1777402263887,-150.0,0.00024658,2]
[421311548,1777402263896,-1200.0,0.000249,2]
[421311549,1777402263905,-450.0,0.000249,7]
[421311550,1777402263914,-1350.0,0.000249,2]
[421311551,1777402263923,-450.0,0.000249,7]
[421311552,1777402263932,-43969.874072,0.000249,3]
[421311553,1777402263941,-3073.09250881,0.00025,2]
[421311554,1777402263950,-7197.19659195,0.00025,2]
[421311555,1777402263959,-4836.79661114,0.00025,2]
[421311556,1777402263968,-600.0,0.00025,15]
[421311557,1777402263977,-600.0,0.00025,2]
[421311558,1777402263986,-151.0,0.00025,7]
[421311559,1777402263995,-160.0,0.00025,7]
[421311560,1777402264005,-550.0,0.00025,2]
[421311561,1777402264014,-517.37033586,0.00025,2]
[421311562,1777402264023,-390.35049547,0.00025,2]
[421311563,1777402264032,-591.64768983,0.00025,2]
[421311564,1777402264042,-762.30712505,0.00025,2]
[421311565,1777402264051,-208.93247611,0.00025,2]
[421311566,1777402264060,-178.15225596,0.00025,2]
[421311567,1777402264070,-1046.06776172,0.00025,2]
[421311568,1777402264079,-162.29107849,0.00025,3]
[421311569,1777402264088,-463.67776139,0.00025,2]
[421311570,1777402264098,-162.29107849,0.00025,7]
[421311571,1777402264107,-250.0,0.00025205,2]
[421311572,1777402264116,-160.0,0.00025358,7]
[421311573,1777402264126,-373.0,0.00025373,7]
[421311574,1777402264135,-379.0,0.00025373,7]
[421311575,1777402264144,-244.94,0.00025519,2]
[421311576,1777402264153,-350.0,0.00025753,2]
[421311577,1777402264162,-500.0,0.0002585,9]
[421311578,1777402264171,-500.0,0.0002585,9]
[421311579,1777402264180,-9427.74857748,0.0002589,5]
[421311580,1777402264189,-150.0,0.0002589,2]
[421311581,1777402264199,-4566.31768285,0.00026,2]
[421311582,1777402264208,-172.05,0.00026027,7]
[421311583,1777402264217,-450.0,0.00026301,2]
[421311584,1777402264226,-638.57,0.00026367,2]
[421311585,1777402264235,-638.57,0.00026367,2]
[421311586,1777402264244,-183.46,0.00026367,2]
[421311587,1777402264253,-392.54,0.00026367,2]
[421311588,1777402264262,-183.46,0.00026367,2]
[421311589,1777402264271,-397.39,0.00026367,2]
[421311590,1777402264280,-392.77,0.00026367,2]
[421311591,1777402264290,-185.04,0.00026367,2]
[421311592,1777402264299,-638.57,0.00026367,2]
[421311593,1777402264308,-183.46,0.00026367,2]
[421311594,1777402264317,-638.57,0.00026367,2]
[421311595,1777402264326,-638.57,0.00026375,2]
[421311596,1777402264334,-183.46,0.00026375,2]
[421311597,1777402264343,-638.57,0.00026375,2]
[421311598,1777402264352,-643.08,0.00026375,2]
[421311599,1777402264361,-638.57,0.00026375,2]
[421311600,1777402264370,-183.33,0.00026375,2]
[421311601,1777402264379,-244.94,0.0002638,2]
[421311602,1777402264389,-373.0,0.00026388,7]
[421311603,1777402264398,-27757.22078024,0.000264,2]
[421311604,1777402264407,-311.86,0.000264,2]
[421311605,1777402264416,-311.85,0.000264,2]
[421311606,1777402264425,-311.86,0.000264,2]
[421311607,1777402264435,-682.96,0.000264,2]
[421311608,1777402264443,-682.95,0.000264,2]
[421311609,1777402264452,-273.19,0.000264,2]
[421311610,1777402264462,-623.0,0.00026519,2]
[421311611,1777402264471,-1350.0,0.00026519,2]
[421311612,1777402264480,-1049.0,0.00026519,2]
[421311613,1777402264490,-1266.0,0.00026519,2]
[421311614,1777402264498,-1421.47789294,0.00026541,2]
[421311615,1777402264507,-373.0,0.00026581,7]
[421311616,1777402264517,-1010.11438529,0.0002659,2]
[421311617,1777402264527,-6889.89098324,0.000266,2]
[421311618,1777402264536,-5000.0,0.000266,2]
[421311619,1777402264545,-30000.0,0.000266,2]
[421311620,1777402264554,-1272.47,0.000267,7]
[421311621,1777402264563,-550.0,0.00026849,2]
[421311622,1777402264572,-187.88957358,0.000269,2]
[421311623,1777402264582,-2000.0,0.00027,2]
[421311624,1777402264591,-600.0,0.00027,2]
[421311625,1777402264601,-2554.352321,0.0002701,2]
[421311626,1777402264609,-4524.0,0.000271,2]
[421311627,1777402264619,-150.0,0.00027185,2]
[421311628,1777402264627,-638.57,0.00027188,2]
[421311629,1777402264637,-638.57,0.00027197,2]
[421311630,1777402264646,-638.57,0.00027197,2]
[421311631,1777402264655,-638.57,0.00027198,2]
[421311632,1777402264664,-645.11,0.00027198,2]
[421311633,1777402264673,-638.57,0.00027198,2]
[421311634,1777402264682,-433.74,0.00027198,2]
[421311635,1777402264691,-244.94,0.00027241,2]
[421311636,1777402264700,-4153.08293773,0.0002739,2]
[421311637,1777402264710,-8204.56042114,0.0002739,2]
[421311638,1777402264719,-245.32652968,0.00027397,2]
[421311639,1777402264729,-350.46647094,0.00027397,2]
[421311640,1777402264738,-500.0,0.00027397,2]
[421311641,1777402264747,-500.0,0.00027397,2]
[421311642,1777402264756,-500.0,0.00027397,2]
[421311643,1777402264765,-500.0,0.00027397,2]
[421311644,1777402264774,-500.0,0.00027397,2]
[421311645,1777402264784,-500.0,0.00027397,2]
[421311646,1777402264793,-500.0,0.00027397,2]
[421311647,1777402264802,-513.71914973,0.00027397,2]
[421311648,1777402264811,-313.0689107,0.00027397,2]
[421311649,1777402264820,-1500.0,0.00027397,2]
[421311650,1777402264829,-239.46146153,0.00027397,7]
[421311651,1777402264838,-150.0,0.00027397,7]
[421311652,1777402264847,-650.0,0.00027397,5]
[421311653,1777402264856,-16959.87,0.00027397,10]
[421311654,1777402264866,-1000.0,0.00027398,2]
[421311655,1777402264875,-1000.0,0.00027398,2]
[421311656,1777402264884,-1000.0,0.00027398,7]
[421311657,1777402264893,-1000.0,0.00027398,2]
[421311658,1777402264902,-1000.0,0.00027398,7]
[421311659,1777402264911,-1000.0,0.00027398,30]
[421311660,1777402264920,-1000.0,0.00027398,30]
[421311661,1777402264930,-967.04,0.000274,14]
[421311662,1777402264939,-158569.67,0.000274,7]
[421311663,1777402264948,-569.12,0.000274,2]
[421311664,1777402264957,-907.65,0.000274,7]
[421311665,1777402264966,-313.02,0.000274,2]
[421311666,1777402264975,-373.0,0.00027402,14]
[421311667,1777402264984,-1450.2060866,0.00027436,2]
[421311668,1777402264994,-467.3,0.00027452,2]
[421311669,1777402265003,-1353.52568083,0.00027452,2]
[421311670,1777402265012,-1450.2060866,0.00027476,2]
[421311671,1777402265022,-245.32652965,0.00027489,2]
[421311672,1777402265031,-350.46647094,0.00027489,2]
[421311673,1777402265040,-1353.52568083,0.00027507,2]
[421311674,1777402265050,-1450.2060866,0.00027515,2]
[421311675,1777402265059,-1450.2060866,0.00027554,2]
[421311676,1777402265068,-1353.52568083,0.00027562,2]
[421311677,1777402265078,-245.32652965,0.0002758,2]
[421311678,1777402265088,-350.46647094,0.0002758,2]
[421311679,1777402265098,-1450.2060866,0.00027593,2]
[421311680,1777402265109,-1353.52568083,0.00027616,2]
[421311681,1777402265119,-1450.2060866,0.00027632,2]
[421311682,1777402265129,-1353.52568083,0.00027671,2]
[421311683,1777402265139,-1450.2060866,0.00027671,2]
[421311684,1777402265149,-245.32652965,0.00027671,2]
[421311685,1777402265158,-350.46647094,0.00027671,2]
[421311686,1777402265167,-1356.94828201,0.00027671,7]
[421311687,1777402265177,-467.3,0.0002768,2]
[421311688,1777402265187,-373.0,0.00027789,14]
[421311689,1777402265197,-467.3,0.00027909,2]
[421311690,1777402265207,-404.99407186,0.00027945,5]
[421311691,1777402265216,-666.0,0.00027999,10]
[421311692,1777402265225,-300.0,0.00027999,10]
[421311693,1777402265235,-300.0,0.00027999,10]
[421311694,1777402265244,-666.0,0.00027999,10]
[421311695,1777402265254,-300.0,0.00027999,10]
[421311696,1777402265264,-51392.81944781,0.00028,2]
[421311697,1777402265273,-151.0,0.00028,7]
[421311698,1777402265283,-160.0,0.00028,7]
[421311699,1777402265293,-158569.67,0.00028,7]
[421311700,1777402265302,-162.29107849,0.00028,7]
[421311701,1777402265312,-467.42,0.00028,2]
[421311702,1777402265322,-467.42,0.00028,2]
[421311703,1777402265332,-467.42,0.00028,2]
[421311704,1777402265341,-467.42,0.00028,2]
[421311705,1777402265351,-467.42,0.00028,2]
[421311706,1777402265361,-467.42,0.00028,2]
[421311707,1777402265372,-467.42,0.00028,2]
[421311708,1777402265382,-174.64404373,0.00028,2]
[421311709,1777402265391,-907.65,0.000281,7]
[421311710,1777402265401,-244.94,0.00028102,2]
[421311711,1777402265410,-467.3,0.00028138,2]
[421311712,1777402265420,-433.03,0.0002815,15]
[421311713,1777402265429,-500.0,0.0002815,15]
[421311714,1777402265438,-500.0,0.0002815,15]
[421311715,1777402265449,-1272.47,0.000282,7]
[421311716,1777402265458,-200.0,0.00028297,2]
[421311717,1777402265467,-467.3,0.00028367,2]
[421311718,1777402265477,-373.0,0.00028417,14]
[421311719,1777402265487,-150.0,0.00028544,2]
[421311720,1777402265496,-467.3,0.00028595,2]
[421311721,1777402265505,-400.0,0.00028768,2]
[421311722,1777402265515,-400.0,0.00028768,2]
[421311723,1777402265524,-285.0,0.00028768,2]
[421311724,1777402265533,-162.29107849,0.000288,7]
[421311725,1777402265542,-467.3363845,0.00028824,2]
[421311726,1777402265551,-300.0,0.00028899,10]
[421311727,1777402265560,-300.0,0.00028899,10]
[421311728,1777402265570,-666.0,0.00028899,10]
[421311729,1777402265580,-300.0,0.00028899,10]
[421311730,1777402265589,-158569.67,0.000289,7]
[421311731,1777402265599,-244.94,0.00028963,2]
[421311732,1777402265608,-373.0,0.00028997,14]
[421311733,1777402265617,-1759.81350621,0.00029,2]
[421311734,1777402265627,-507.73303043,0.00029,2]
[421311735,1777402265636,-650.0,0.00029,2]
[421311736,1777402265645,-907.65,0.00029,7]
[421311737,1777402265655,-246.5446197,0.00029086,2]
[421311738,1777402265665,-450.0,0.00029179,2]
[421311739,1777402265674,-450.0,0.00029179,2]
[421311740,1777402265684,-450.0,0.00029179,2]
[421311741,1777402265694,-3844.32525757,0.000294,2]
[421311742,1777402265703,-176.22671612,0.000294,2]
[421311743,1777402265712,-325.94387673,0.000294,5]
[421311744,1777402265722,-373.0,0.00029432,14]
[421311745,1777402265732,-300.0,0.00029499,10]
[421311746,1777402265741,-666.0,0.00029499,10]
[421311747,1777402265750,-300.0,0.00029499,10]
[421311748,1777402265759,-1350.0,0.00029519,2]
[421311749,1777402265769,-1266.0,0.00029519,2]
[421311750,1777402265778,-200.0,0.00029589,2]
[421311751,1777402265787,-291.0,0.00029589,2]
[421311752,1777402265796,-574.41,0.0002967,2]
[421311753,1777402265805,-570.39,0.0002967,2]
[421311754,1777402265815,-483.38,0.0002967,2]
[421311755,1777402265824,-244.94,0.00029824,2]
[421311756,1777402265833,-300.0,0.00029899,10]
[421311757,1777402265843,-666.0,0.00029899,10]
[421311758,1777402265852,-300.0,0.00029899,10]
[421311759,1777402265862,-300.0,0.00029899,10]
[421311760,1777402265871,-672.63471202,0.00029899,10]
[421311761,1777402265881,-300.0,0.00029899,10]
[421311762,1777402265891,-79770.39619999,0.000299,2]
[421311763,1777402265900,-158569.67,0.000299,7]
[421311764,1777402265910,-150.0,0.00029971,2]
[421311765,1777402265920,-300.0,0.00029999,10]
[421311766,1777402265930,-18660.99354118,0.0003,2]
[421311767,1777402265939,-20096.38113553,0.0003,2]
[421311768,1777402265949,-7560.30091923,0.0003,2]
[421311769,1777402265959,-2000.0,0.0003,3]
[421311770,1777402265968,-4224.9762102,0.0003,2]
[421311771,1777402265978,-150.0,0.0003,11]
[421311772,1777402265987,-151.0,0.0003,5]
[421311773,1777402265997,-200.0,0.0003,4]
[421311774,1777402266006,-118757.82865743,0.0003,5]
[421311775,1777402266017,-8000.0,0.0003,3]
[421311776,1777402266027,-76182.70330919,0.0003,2]
[421311777,1777402266036,-150.0,0.0003,2]
[421311778,1777402266046,-163.1,0.0003,2]
[421311779,1777402266056,-193.155,0.0003,22]
[421311780,1777402266065,-180.23276446,0.00030027,4]
[421311781,1777402266075,-1272.47,0.000301,7]
[421311782,1777402266084,-907.65,0.000301,7]
[421311783,1777402266095,-300.0,0.00030129,10]
[421311784,1777402266104,-14012.54694183,0.0003013,2]
[421311785,1777402266114,-264.50458982,0.00030199,10]
[421311786,1777402266124,-15716.01149255,0.000302,2]
[421311787,1777402266134,-373.0,0.00030447,14]
[421311788,1777402266143,-151.84,0.00030468,2]
[421311789,1777402266153,-151.0,0.00030468,2]
[421311790,1777402266163,-151.52,0.00030468,2]
[421311791,1777402266172,-151.0,0.00030468,2]
[421311792,1777402266181,-151.0,0.00030468,2]
[421311793,1777402266191,-151.0,0.00030468,2]
[421311794,1777402266201,-151.0,0.00030468,2]
[421311795,1777402266211,-151.0,0.00030468,2]
[421311796,1777402266221,-151.0,0.0003047,2]
[421311797,1777402266230,-151.0,0.0003047,2]
[421311798,1777402266239,-151.0,0.0003047,2]
[421311799,1777402266249,-151.0,0.0003047,2]
[421311800,1777402266259,-151.0,0.0003047,2]
[421311801,1777402266269,-151.0,0.0003047,2]
[421311802,1777402266279,-151.0,0.0003047,2]
[421311803,1777402266288,-151.0,0.0003047,2]
[421311804,1777402266298,-1557.71075688,0.00030556,2]
[421311805,1777402266308,-312.0,0.00030556,2]
[421311806,1777402266318,-250.0,0.000306,2]
[421311807,1777402266328,-250.0,0.000306,2]
[421311808,1777402266338,-244.0,0.000306,2]
[421311809,1777402266347,-150.06,0.00030685,2]
[421311810,1777402266357,-150.05999355,0.00030685,30]
[421311811,1777402266366,-158569.67,0.000309,7]
[421311812,1777402266377,-1421.47789294,0.00030994,2]
[421311813,1777402266386,-700.0,0.00031,2]
[421311814,1777402266396,-500.0,0.00031026,120]
[421311815,1777402266406,-585.0,0.00031173,30]
[421311816,1777402266416,-747.0,0.00031173,30]
[421311817,1777402266427,-202.0,0.00031173,30]
[421311818,1777402266437,-161.0,0.00031173,30]
[421311819,1777402266447,-1032.0,0.00031173,30]
[421311820,1777402266456,-445.0,0.00031173,30]
[421311821,1777402266466,-502.0,0.00031279,30]
[421311822,1777402266476,-153.0,0.00031279,30]
[421311823,1777402266485,-379.0,0.00031279,30]
[421311824,1777402266495,-151.0,0.0003129,2]
[421311825,1777402266504,-151.0,0.0003129,2]
[421311826,1777402266514,-151.0,0.0003129,2]
[421311827,1777402266525,-151.0,0.0003129,2]
[421311828,1777402266534,-151.0,0.0003129,2]
[421311829,1777402266544,-151.0,0.0003129,2]
[421311830,1777402266554,-151.82,0.0003129,2]
[421311831,1777402266564,-151.0,0.00031291,2]
[421311832,1777402266574,-151.0,0.00031297,2]
[421311833,1777402266583,-151.0,0.00031297,2]
[421311834,1777402266593,-151.0,0.00031297,2]
[421311835,1777402266603,-151.0,0.00031297,2]
[421311836,1777402266613,-150.0,0.0003147,2]
[421311837,1777402266622,-185.9844079,0.00031731,60]
[421311838,1777402266631,-297.4037885,0.00031731,60]
[421311839,1777402266641,-351.2830822,0.00031731,60]
[421311840,1777402266651,-200.4166695,0.00031731,60]
[421311841,1777402266660,-164.0716611,0.00031731,60]
[421311842,1777402266670,-167.8555445,0.00031731,60]
[421311843,1777402266679,-193.7803164,0.00031731,60]
[421311844,1777402266690,-152.0,0.00031886,3]
[421311845,1777402266700,-158569.67,0.000319,7]
[421311846,1777402266710,-907.65,0.000319,7]
[421311847,1777402266723,-187.88957358,0.000319,2]
[421311848,1777402266732,-162.0,0.0003195,14]
[421311849,1777402266742,-151.0,0.00032,7]
[421311850,1777402266752,-14226.92627401,0.00032,5]
[421311851,1777402266762,-4524.0,0.000321,2]
[421311852,1777402266772,-311.86,0.000321,2]
[421311853,1777402266782,-311.85,0.000321,2]
[421311854,1777402266791,-311.86,0.000321,2]
[421311855,1777402266801,-682.96,0.000321,2]
[421311856,1777402266811,-682.95,0.000321,2]
[421311857,1777402266820,-273.19,0.000321,2]
[421311858,1777402266830,-3380.41,0.000321,2]
[421311859,1777402266840,-10906.53,0.000321,2]
[421311860,1777402266849,-4771.28,0.000321,2]
[421311861,1777402266858,-514.93,0.000321,2]
[421311862,1777402266867,-151.0,0.00032113,2]
[421311863,1777402266877,-151.0,0.00032118,2]
[421311864,1777402266887,-585.0,0.00032173,30]
[421311865,1777402266896,-747.0,0.00032173,30]
[421311866,1777402266906,-202.0,0.00032173,30]
[421311867,1777402266916,-161.0,0.00032173,30]
[421311868,1777402266926,-1032.0,0.00032173,30]
[421311869,1777402266936,-445.0,0.00032173,30]
[421311870,1777402266946,-502.0,0.00032279,30]
[421311871,1777402266956,-153.0,0.00032279,30]
[421311872,1777402266966,-379.0,0.00032279,30]
[421311873,1777402266975,-1000.0,0.0003235,2]
[421311874,1777402266985,-1000.0,0.0003235,2]
[421311875,1777402266995,-1000.0,0.0003235,2]
[421311876,1777402267005,-1000.0,0.0003235,2]
[421311877,1777402267015,-1000.0,0.0003235,2]
[421311878,1777402267025,-1000.0,0.00032401,2]
[421311879,1777402267035,-1000.0,0.00032401,2]
[421311880,1777402267046,-1000.0,0.00032401,2]
[421311881,1777402267056,-1000.0,0.00032401,2]
[421311882,1777402267066,-1000.0,0.00032401,2]
[421311883,1777402267076,-244.94,0.00032493,30]
[421311884,1777402267086,-1219.14,0.00032519,2]
[421311885,1777402267096,-280.0,0.00032708,25]
[421311886,1777402267108,-175.511,0.00032715,120]
[421311887,1777402267118,-163.4042,0.00032729,2]
[421311888,1777402267129,-4889.91223397,0.000328,2]
[421311889,1777402267139,-500.0,0.00032834,120]
[421311890,1777402267149,-890.57948568,0.00032849,120]
[421311891,1777402267159,-987.95,0.00032877,7]
[421311892,1777402267169,-500.0,0.00032877,2]
[421311893,1777402267182,-500.0,0.00032877,2]
[421311894,1777402267192,-500.0,0.00032877,2]
[421311895,1777402267203,-500.0,0.00032877,2]
[421311896,1777402267213,-500.0,0.00032877,2]
[421311897,1777402267224,-500.0,0.00032877,2]
[421311898,1777402267234,-401.15071749,0.00032877,2]
[421311899,1777402267244,-500.0,0.00032877,2]
[421311900,1777402267254,-500.0,0.00032877,2]
[421311901,1777402267264,-500.0,0.00032877,2]
[421311902,1777402267274,-500.0,0.00032877,2]
[421311903,1777402267287,-500.0,0.00032877,2]
[421311904,1777402267297,-500.0,0.00032877,2]
[421311905,1777402267306,-500.0,0.00032877,2]
[421311906,1777402267316,-500.0,0.00032877,2]
[421311907,1777402267327,-500.0,0.00032877,2]
[421311908,1777402267337,-500.0,0.00032877,2]
[421311909,1777402267348,-500.0,0.00032877,2]
[421311910,1777402267358,-500.0,0.00032877,2]
[421311911,1777402267368,-500.0,0.00032877,2]
[421311912,1777402267378,-500.0,0.00032877,2]
[421311913,1777402267389,-500.0,0.00032877,2]
[421311914,1777402267399,-500.0,0.00032877,2]
[421311915,1777402267409,-500.0,0.00032877,2]
[421311916,1777402267420,-500.0,0.00032877,2]
[421311917,1777402267431,-500.0,0.00032877,2]
[421311918,1777402267440,-466.24153461,0.00032877,2]
[421311919,1777402267452,-400.0,0.00032878,2]
[421311920,1777402267463,-400.0,0.00032878,2]
[421311921,1777402267473,-285.0,0.00032878,2]
[421311922,1777402267483,-907.65,0.000329,30]
[421311923,1777402267493,-51944.03182842,0.00033,2]
[421311924,1777402267504,-569.29404,0.00033,14]
[421311925,1777402267514,-750.0,0.00033,2]
[421311926,1777402267524,-150.0,0.00033043,2]
[421311927,1777402267535,-585.0,0.00033173,30]
[421311928,1777402267545,-747.0,0.00033173,30]
[421311929,1777402267555,-202.0,0.00033173,30]
[421311930,1777402267565,-161.0,0.00033173,30]
[421311931,1777402267576,-1032.0,0.00033173,30]
[421311932,1777402267586,-445.0,0.00033173,30]
[421311933,1777402267597,-502.0,0.00033279,30]
[421311934,1777402267608,-153.0,0.00033279,30]
[421311935,1777402267619,-379.0,0.00033279,30]
[421311936,1777402267629,-450.0,0.00033289,2]
[421311937,1777402267639,-450.0,0.00033289,2]
[421311938,1777402267653,-450.0,0.00033289,2]
[421311939,1777402267663,-471.66316354,0.00033362,120]
[421311940,1777402267675,-30000.0,0.0003366,2]
[421311941,1777402267685,-200.0,0.00033699,2]
[421311942,1777402267697,-291.0,0.00033699,2]
[421311943,1777402267707,-4956.0,0.000337,2]
[421311944,1777402267718,-60000.0,0.0003386,2]
[421311945,1777402267728,-1272.47,0.00034,7]
[421311946,1777402267739,-2891.964,0.00034048,37]
[421311947,1777402267749,-175.937,0.00034048,37]
[421311948,1777402267760,-585.0,0.00034173,30]
[421311949,1777402267770,-747.0,0.00034173,30]
[421311950,1777402267780,-202.0,0.00034173,30]
[421311951,1777402267790,-161.0,0.00034173,30]
[421311952,1777402267800,-1032.0,0.00034173,30]